Workbook

Sheet 1월
B2: 2023년 1월 국회미래연구원 원장 업무추진비 집행내역
B4: No | C4: 집행일 | D4: 금액(원) | E4: 사용 목적
B5: 1 | C5: 2023-01-02 | D5: 48000 | E5: 2023년 수시연구과제 관련 논의
B6: 2 | C6: 2023-01-03 | D6: 48000 | E6: 중장기 연구계획 수립을 위한 논의
B7: 3 | C7: 2023-01-04 | D7: 36000 | E7: 연구원 운영 관련 유관기관 자문
B8: 4 | C8: 2023-01-05 | D8: 59800 | E8: 연구성과 확산방안 논의
B9: 5 | C9: 2023-01-09 | D9: 36000 | E9: 국회 업무보고 관련 논의
B10: 6 | C10: 2023-01-10 | D10: 86000 | E10: 연구과제 관련 학계 전문가 자문
B11: 7 | C11: 2023-01-13 | D11: 65800 | E11: 연구사업 방향 관련 산업계 전문가 자문
B12: 8 | C12: 2023-01-18 | D12: 79000 | E12: 미래전망 연구 관련 논의
B13: 9 | C13: 2023-01-20 | D13: 36000 | E13: 2023년도 연구과제 관련 논의
B14: 10 | C14: 2023-01-30 | D14: 36000 | E14: 연구원 현안사항 관련 논의
B15: 11 | C15: 2023-01-31 | D15: 67000 | E15: 연구사업 관련 전문가 자문
B16: 합계 | D16: =SUM(D5:D15) -> 597600 | E16: 총 11건

Sheet 2월
B2: 2023년 2월 국회미래연구원 원장 업무추진비 집행내역
B4: No | C4: 집행일 | D4: 금액(원) | E4: 사용 목적
B5: 1 | C5: 2023-02-02 | D5: 76000 | E5: 기관 운영 관련 유관기관 전문가 자문
B6: 2 | C6: 2023-02-10 | D6: 110000 | E6: 연구원 현안사항 관련 논의
B7: 3 | C7: 2023-02-13 | D7: 48000 | E7: 이사회 안건 관련 검토
B8: 4 | C8: 2023-02-17 | D8: 42000 | E8: 연구과제 관련 학계 전문가 자문
B9: 5 | C9: 2023-02-20 | D9: 36000 | E9: 대토론회 관련 사항 점검
B10: 6 | C10: 2023-02-23 | D10: 90000 | E10: 연구과제 관련 산업계 전문가 자문
B11: 7 | C11: 2023-02-27 | D11: 36000 | E11: 결산 후속조치 관련 논의
B12: 8 | C12: 2023-02-28 | D12: 54000 | E12: 연구성과 확산을 위한 산업계 전문가 자문
B13: 합계 | D13: =SUM(D5:D12) -> 492000 | E13: 총 8건

Sheet 3월
B2: 2023년 3월 국회미래연구원 원장 업무추진비 집행내역
B4: No | C4: 집행일 | D4: 금액(원) | E4: 사용 목적
B5: 1 | C5: 2023-03-03 | D5: 66000 | E5: 연구사업 방향성 관련 산업계 전문가 자문
B6: 2 | C6: 2023-03-06 | D6: 48000 | E6: 연구원 현안사항 관련 논의
B7: 3 | C7: 2023-03-10 | D7: 76000 | E7: 연구원 운영 관련 유관기관 자문
B8: 4 | C8: 2023-03-15 | D8: 31500 | E8: 연구원 현안사항 관련 논의
B9: 5 | C9: 2023-03-16 | D9: 70000 | E9: 연구사업 방향 관련 경제계 자문
B10: 6 | C10: 2023-03-23 | D10: 71000 | E10: 연구과제 관련 학계 전문가 자문
B11: 7 | C11: 2023-03-24 | D11: 57000 | E11: 연구성과 확산 방안 논의
B12: 8 | C12: 2023-03-28 | D12: 120000 | E12: 연구원 현안사항 관련 논의
B13: 9 | C13: 2023-03-30 | D13: 76000 | E13: 연구사업 관련 전문가 자문
B14: 10 | C14: 2023-03-31 | D14: 29500 | E14: 연구원 현안사항 관련 논의
B15: 합계 | D15: =SUM(D5:D14) -> 645000 | E15: 총 10건

Sheet 4월
B2: 2023년 4월 국회미래연구원 원장 업무추진비 집행내역
B4: No | C4: 집행일 | D4: 금액(원) | E4: 사용 목적
B5: 1 | C5: 2023-04-03 | D5: 48000 | E5: 국가현안 대토론회 진행사항 점검
B6: 2 | C6: 2023-04-04 | D6: 64000 | E6: 기관 운영 관련 전문가 자문
B7: 3 | C7: 2023-04-05 | D7: 100000 | E7: 수시과제 관련 논의
B8: 4 | C8: 2023-04-07 | D8: 68000 | E8: 연구과제 관련 학계 전문가 자문
B9: 5 | C9: 2023-04-10 | D9: 36000 | E9: 연구원 현안사항 관련 논의
B10: 6 | C10: 2023-04-12 | D10: 60000 | E10: 연구원 운영 관련 자문
B11: 7 | C11: 2023-04-14 | D11: 80000 | E11: 연구성과 확신을 위한 산업계 전문가 자문
B12: 8 | C12: 2023-04-17 | D12: 60000 | E12: 연구과제 진행사항 점검
B13: 9 | C13: 2023-04-19 | D13: 64000 | E13: 연구사업 방향 관련 유관기관 자문
B14: 10 | C14: 2023-04-20 | D14: 71800 | E14: 연구사업 방향 관련 과기계 자문
B15: 11 | C15: 2023-04-24 | D15: 60000 | E15: 2022년 결산 관련 자료 검토
B16: 12 | C16: 2023-04-27 | D16: 99000 | E16: 연구과제 관련 학계 전문가 자문
B17: 합계 | D17: =SUM(D5:D16) -> 810800 | E17: 총 12건

Sheet 5월
B2: 2023년 5월 국회미래연구원 원장 업무추진비 집행내역
B4: No | C4: 집행일 | D4: 금액(원) | E4: 사용 목적
B5: 1 | C5: 2023-05-04 | D5: 66000 | E5: 수시과제 관련 전문가 자문
B6: 2 | C6: 2023-05-08 | D6: 70000 | E6: 국가현안 대토론회 진행사항 점검
B7: 3 | C7: 2023-05-10 | D7: 72000 | E7: 연구성과 창출을 위한 산업계 전문가 자문
B8: 4 | C8: 2023-05-11 | D8: 64000 | E8: 연구과제 관련 산업계 전문가 자문
B9: 5 | C9: 2023-05-15 | D9: 70000 | E9: 사무처 감사자료 검토
B10: 6 | C10: 2023-05-17 | D10: 32000 | E10: 연구원 현안사항 논의
B11: 7 | C11: 2023-05-19 | D11: 28000 | E11: 차년도 연구계획 수립을 위한 전문가 자문
B12: 8 | C12: 2023-05-22 | D12: 42000 | E12: 운영위 요구자료 검토
B13: 9 | C13: 2023-05-23 | D13: 32000 | E13: 미래전망 연구관련 논의
B14: 10 | C14: 2023-05-24 | D14: 28000 | E14: 하반기 연구성과 확산을 위한 논의
B15: 11 | C15: 2023-05-25 | D15: 68000 | E15: 수시과제 관련 학계 전문가 자문
B16: 12 | C16: 2023-05-30 | D16: 96000 | E16: 연구사업 지원체계 관련 논의
B17: 합계 | D17: =SUM(D5:D16) -> 668000 | E17: 총 12건

Sheet 6월
B2: 2023년 6월 국회미래연구원 원장 업무추진비 집행내역
B4: No | C4: 집행일 | D4: 금액(원) | E4: 사용 목적
B5: 1 | C5: 2023-06-01 | D5: 32000 | E5: 기관 운영 관련 논의
B6: 2 | C6: 2023-06-05 | D6: 42000 | E6: 연구사업 지원체계 관련 논의
B7: 3 | C7: 2023-06-09 | D7: 32000 | E7: 미래전망 연구 관련 논의
B8: 4 | C8: 2023-06-12 | D8: 32000 | E8: 수시연구과제 관련 논의
B9: 5 | C9: 2023-06-13 | D9: 64000 | E9: 연구원 운영 관련 전문가 자문
B10: 6 | C10: 2023-06-15 | D10: 90000 | E10: 연구과제 관련 수시점검
B11: 7 | C11: 2023-06-19 | D11: 56000 | E11: 수시연구과제 관련 논의
B12: 8 | C12: 2023-06-22 | D12: 32000 | E12: 대토론회 관련사항 점검
B13: 9 | C13: 2023-06-23 | D13: 60000 | E13: 기관 운영 관련 논의
B14: 10 | C14: 2023-06-26 | D14: 32000 | E14: 연구과제 관련 논의
B15: 11 | C15: 2023-06-30 | D15: 100000 | E15: 미래연구 관련 논의
B16: 합계 | D16: =SUM(D5:D15) -> 572000 | E16: 총 11건

Sheet 7월
B2: 2023년 7월 국회미래연구원 원장 업무추진비 집행내역
B4: No | C4: 집행일 | D4: 금액(원) | E4: 사용 목적
B5: 1 | C5: 2023-07-03 | D5: 34000 | E5: 미래전망 연구관련 논의
B6: 2 | C6: 2023-07-04 | D6: 109000 | E6: 연구과제 관련 산업계 전문가 자문
B7: 3 | C7: 2023-07-10 | D7: 34000 | E7: 수시연구과제 관련 논의
B8: 4 | C8: 2023-07-11 | D8: 70000 | E8: 미래전망 연구관련 논의
B9: 5 | C9: 2023-07-14 | D9: 26000 | E9: 경영지원팀 회계업무 관련 논의
B10: 6 | C10: 2023-07-21 | D10: 98000 | E10: 미래연구산업 관련 논의
B11: 7 | C11: 2023-07-24 | D11: 34000 | E11: 미래전망 연구관련 논의
B12: 8 | C12: 2023-07-27 | D12: 54000 | E12: 연구과제 관련 전문가 자문
B13: 9 | C13: 2023-07-31 | D13: 84000 | E13: 연구사업 방향성 관련 전문가 자문
B14: 합계 | D14: =SUM(D5:D13) -> 543000 | E14: 총 9건

Sheet 8월
B2: 2023년 8월 국회미래연구원 원장 업무추진비 집행내역
B4: No | C4: 집행일 | D4: 금액(원) | E4: 사용 목적
B5: 1 | C5: 2023-08-02 | D5: 27000 | E5: 수시연구과제 관련 논의
B6: 2 | C6: 2023-08-03 | D6: 87000 | E6: 미래연구산업 관련 논의
B7: 3 | C7: 2023-08-04 | D7: 28000 | E7: 수시연구과제 관련 논의
B8: 4 | C8: 2023-08-10 | D8: 28000 | E8: 경영지원팀 상반기 업무 관련 논의
B9: 5 | C9: 2023-08-17 | D9: 34000 | E9: 미래산업 관련 논의
B10: 6 | C10: 2023-08-23 | D10: 60000 | E10: 기관경영 관련 논의
B11: 7 | C11: 2023-08-24 | D11: 96000 | E11: 미래연구산업 관련 논의
B12: 8 | C12: 2023-08-25 | D12: 90000 | E12: 연구원 운영 관련 전문가 자문
B13: 9 | C13: 2023-08-30 | D13: 40000 | E13: 대토론회 관련 논의
B14: 합계 | D14: =SUM(D5:D13) -> 490000 | E14: 총 9건

Sheet 9월
B2: 2023년 9월 국회미래연구원 원장 업무추진비 집행내역
B4: No | C4: 집행일 | D4: 금액(원) | E4: 사용 목적
B5: 1 | C5: 2023-09-01 | D5: 51000 | E5: 수시연구과제 관련 논의
B6: 2 | C6: 2023-09-04 | D6: 64000 | E6: 미래전망 관련 논의
B7: 3 | C7: 2023-09-11 | D7: 29000 | E7: 수시연구과제 관련 논의
B8: 4 | C8: 2023-09-21 | D8: 101000 | E8: 대토론회 관련 논의
B9: 합계 | D9: =SUM(D5:D8) -> 245000 | E9: ="총 "&COUNTA(E5:E8)&"건" -> 총 4건

Sheet 10월
B2: 2023년 10월 국회미래연구원 원장 업무추진비 집행내역
B4: No | C4: 집행일 | D4: 금액(원) | E4: 사용 목적
B5: =ROW()-4 -> 1 | C5: 2023-10-11 | D5: 44000 | E5: 미래산업 관련 논의
B6: =ROW()-4 -> 2 | C6: 2023-10-12 | D6: 67100 | E6: 수시연구과제 관련 논의
B7: 3 | C7: 2023-10-13 | D7: 60000 | E7: 기관경영 관련 논의
B8: 4 | C8: 2023-10-18 | D8: 76000 | E8: 연구과제 관련 수시점검
B9: 5 | C9: 2023-10-19 | D9: 84000 | E9: 미래전망 연구관련 논의
B10: 6 | C10: 2023-10-23 | D10: 78000 | E10: 성과평가 관련 논의
B11: 7 | C11: 2023-10-30 | D11: 58000 | E11: 수시연구 과제관련 논의
B12: 8 | C12: 2023-10-31 | D12: 72000 | E12: 연구사업 방향성 관련 전문가 자문
B13: 합계 | D13: =SUM(D5:D12) -> 539100 | E13: ="총 "&COUNTA(E5:E12)&"건" -> 총 8건

Sheet 11월
B2: 2023년 11월 국회미래연구원 원장 업무추진비 집행내역
B4: No | C4: 집행일 | D4: 금액(원) | E4: 사용 목적
B5: =ROW()-4 -> 1 | C5: 2023-11-01 | D5: 78000 | E5: 미래산업 관련 논의
B6: =ROW()-4 -> 2 | C6: 2023-11-02 | D6: 76000 | E6: 미래전망 연구관련 논의
B7: 3 | C7: 2023-11-06 | D7: 76000 | E7: 연구과제 관련 산업계 전문가 자문
B8: 4 | C8: 2023-11-08 | D8: 75000 | E8: 성과평가 관련 논의
B9: 5 | C9: 2023-11-13 | D9: 64000 | E9: 수시연구 과제관련 논의
B10: 6 | C10: 2023-11-14 | D10: 83000 | E10: 수시 과제 관련 학계 전문가 자문
B11: 7 | C11: 2023-11-15 | D11: 119000 | E11: 미래연구산업 관련
B12: 8 | C12: 2023-11-17 | D12: 114000 | E12: 기관경영 관련 논의
B13: 9 | C13: 2023-11-20 | D13: 54000 | E13: 기관경영 관련 논의
B14: 10 | C14: 2023-11-27 | D14: 90000 | E14: 수시연구 과제관련 논의
B15: 합계 | D15: =SUM(D5:D14) -> 829000 | E15: ="총 "&COUNTA(E5:E14)&"건" -> 총 10건

Sheet 12월
B2: 2023년 12월 국회미래연구원 원장 업무추진비 집행내역
B4: No | C4: 집행일 | D4: 금액(원) | E4: 사용 목적
B5: =ROW()-4 -> 1 | C5: 2023-12-01 | D5: 158000 | E5: 미래연구 논의
B6: =ROW()-4 -> 2 | C6: 2023-12-04 | D6: 50000 | E6: 연구과제관련 논의
B7: 3 | C7: 2023-12-05 | D7: 114000 | E7: 연구과제 관련 수시점검
B8: 4 | C8: 2023-12-08 | D8: 76000 | E8: 수시연구 과제관련 논의
B9: 5 | C9: 2023-12-11 | D9: 68000 | E9: 미래전망 연구관련 논의
B10: 6 | C10: 2023-12-18 | D10: 175000 | E10: 기관경영 관련 논의
B11: 7 | C11: 2023-12-19 | D11: 99000 | E11: 연구과제 관련 산업계 전문가 자문
B12: 8 | C12: 2023-12-21 | D12: 180000 | E12: 미래전망 연구관련 논의
B13: 9 | C13: 2023-12-26 | D13: 122000 | E13: 미래연구 논의
B14: 합계 | D14: =SUM(D5:D13) -> 1042000 | E14: ="총 "&COUNTA(E5:E13)&"건" -> 총 9건
